Workbook

Sheet Wksh 1 - Market Experience
A1: Press TAB and directional arrow keys to read through the document. If macros are disabled, press and hold the ALT key and press the F, then I, and then N key. After that, select the Enable All Content option by pressing enter. (note that you can also press the C key to select "Enable All Content") Instructions can be found in cells K1 through K4. If screen reader fails to announce a cell after performing a dropdown selection, please press F2 and then ESC to force the screen reader to resume. | B1: Unified Rate Review v6.0 [assistive technology users, please reference cell A1 for instructions] | K1: To add a product to Worksheet 2 - Plan Product Info, select the Add Product button or Ctrl + Shift + P.
K2: To add a plan to Worksheet 2 - Plan Product Info, select the Add Plan button or Ctrl + Shift + L.
B3: Company Legal Name: | C3: Molina Healthcare of Kentucky, Inc. | K3: To validate, select the Validate button or Ctrl + Shift + I.
B4: HIOS Issuer ID: | C4: 73891 | D4: State: | E4: KY | K4: To finalize, select the Finalize button or Ctrl + Shift + F.
B5: Effective Date of Rate Change(s): | C5: =MAX('Wksh 2 - Plan Product Info'!E19:L19) -> 2024-01-01 | D5: Market: | E5: Individual
B8: Market Level Calculations (Same for all Plans)
B11: Section I: Experience Period Data
B12: Experience Period: | D12: 2022-01-01 | E12: to | F12: =EDATE(D12,12)-1 -> 2022-12-31
E13: Total | F13: PMPM
B14: Allowed Claims | E14: 2254484.906 | F14: =E14/E19 -> 402.4428607
B15: Reinsurance | E15: 0 | F15: =E15/E19 -> 0
B16: Incurred Claims in Experience Period | E16: 1887239.53 | F16: =E16/E19 -> 336.8867423
B17: Risk Adjustment | E17: -697271.35 | F17: =E17/E19 -> -124.4682881
B18: Experience Period Premium | E18: 2795841.25 | F18: =E18/E19 -> 499.0791235
B19: Experience Period Member Months | E19: ='Wksh 2 - Plan Product Info'!D33 -> 5602
B21: Section II: Projections
D22: Year 1 Trend | F22: Year 2 Trend
B23: Benefit Category | C23: Experience Period Index Rate PMPM | D23: Cost | E23: Utilization | F23: Cost | G23: Utilization | H23: Trended EHB Allowed Claims PMPM
B24: Inpatient Hospital | C24: 68.26 | D24: 1.025 | E24: 1.025 | F24: 1.015 | G24: 1.035 | H24: =PRODUCT(C24:G24) -> 75.33909635
B25: Outpatient Hospital | C25: 109.44 | D25: 1.025 | E25: 1.035 | F25: 1.015 | G25: 1.045 | H25: 123.1466586
B26: Professional | C26: 130.84 | D26: 1.026421282 | E26: 1.035 | F26: 1.007421282 | G26: 1.045 | H26: 146.3301928
B27: Other Medical | C27: 6.63 | D27: 1.017421282 | E27: 1.035 | F27: 1.007421282 | G27: 1.045 | H27: 7.349911456
B28: Capitation | C28: 0.2 | D28: 1.058005906 | E28: 1.055 | F28: 1.058005906 | G28: 1.065 | H28: 0.2515406896
B29: Prescription Drug | C29: 87.07 | D29: 1.045 | E29: 1 | F29: 1.045 | G29: 1 | H29: 95.08261675
B30: Total | C30: =SUM(C24:C29) -> 402.44 | H30: =SUM(H24:H29) -> 447.5000166
B32: Morbidity Adjustment | F32: 1
B33: Demographic Shift | F33: 1
B34: Plan Design Changes | F34: 1
B35: Other | F35: 1
B36: Adjusted Trended EHB Allowed Claims PMPM for | D36: =IF(C5<>"",C5,"") -> 2024-01-01 | F36: =H30*PRODUCT(F32:F35) -> 447.5000166
B38: Manual EHB Allowed Claims PMPM | F38: 631.0721754
B39: Applied Credibility % | F39: 0
G41: Projected Period Totals
B42: Projected Index Rate for | D42: =IF(C5<>"",C5,"") -> 2024-01-01 | F42: =ROUND(F39*F36+(1-F39)*F38,2) -> 631.07 | G42: =F42*F48 -> 13017711.96
B43: Reinsurance | F43: 0 | G43: =F43*F48 -> 0
B44: Risk Adjustment Payment/Charge | F44: 37.89288873 | G44: =F44*F48 -> 781654.5087
B45: Exchange User Fees | F45: 0 | G45: =F45*F46*F48 -> 0
B46: Market Adjusted Index Rate | F46: =(F42-F43-F44)/(1-F45) -> 593.1771113 | G46: =F46*F48 -> 12236057.45
B48: Projected Member Months | F48: ='Wksh 2 - Plan Product Info'!D73 -> 20628
B50: Information Not Releasable to the Public Unless Authorized by Law: This information has not been publically disclosed and may be privileged and confidential. It is for internal government use only and must not be disseminated, distributed, or copied to persons not authorized to receive the information. Unauthorized disclosure may result in prosecution to the full extent of the law.

Sheet Wksh 2 - Plan Product Info
A1: Press TAB and directional arrow keys to read through the document. If macros are disabled, press and hold the ALT key and press the F, then I, and then N key. After that, select the Enable All Content option by pressing enter. (note that you can also press the C key to select "Enable All Content") Instructions can be found in cells P1 through P6. If screen reader fails to announce a cell after performing a dropdown selection, please press F2 and then ESC to force the screen reader to resume. | C1: Product-Plan Data Collection [assistive technology users, please reference cell A1 for instructions] | P1: To add a product to Worksheet 2 - Plan Product Info, select the Add Product button or Ctrl + Shift + P.
P2: To add a plan to Worksheet 2 - Plan Product Info, select the Add Plan button or Ctrl + Shift + L.
C3: Company Legal Name: | D3: =IF('Wksh 1 - Market Experience'!C3<>"", 'Wksh 1 - Market Experience'!C3,"") -> Molina Healthcare of Kentucky, Inc. | P3: To validate, select the Validate button or Ctrl + Shift + I.
C4: HIOS Issuer ID: | D4: =IF('Wksh 1 - Market Experience'!C4<>"", 'Wksh 1 - Market Experience'!C4,"") -> 73891 | E4: State: | F4: =IF('Wksh 1 - Market Experience'!E4<>"",'Wksh 1 - Market Experience'!E4,"") -> KY | P4: To finalize, select the Finalize button or Ctrl + Shift + F.
C5: Effective Date of Rate Change(s): | D5: =IF('Wksh 1 - Market Experience'!C5<>"", 'Wksh 1 - Market Experience'!C5,"") -> 2024-01-01 | E5: Market: | F5: =IF('Wksh 1 - Market Experience'!E5<>"",'Wksh 1 - Market Experience'!E5,"") -> Individual | P5: To remove a product, navigate to the corresponding Product Name/Product ID field and select the Remove Product button or Ctrl + Shift + Q.
P6: To remove a plan, navigate to the corresponding Plan Name/Plan ID field and select the Remove Plan button or Ctrl + Shift + A.
C7: Product/Plan Level Calculations
B9: Field # | C9: Section I: General Product and Plan Information
B10: 1.1 | C10: Product Name | E10: Molina Healthcare | K10: Molina Healthcare +Vision
B11: 1.2 | C11: Product ID | E11: 73891KY001 | K11: 73891KY002
B12: 1.3 | C12: Plan Name | E12: Gold 1 | F12: Silver 1 | G12: Silver 12 with first 4 PCP visits free | H12: Constant Care Silver 4 | I12: Constant Care Silver 7 | J12: Constant Care Silver 2 | K12: Gold 1 with Adult Vision Services | L12: Silver 1 with Adult Vision Services
B13: 1.4 | C13: Plan ID (Standard Component ID) | E13: 73891KY0010001 | F13: 73891KY0010002 | G13: 73891KY0010009 | H13: 73891KY0010004 | I13: 73891KY0010007 | J13: 73891KY0010008 | K13: 73891KY0020001 | L13: 73891KY0020002
B14: 1.5 | C14: Metal | E14: Gold | F14: Silver | G14: Silver | H14: Silver | I14: Silver | J14: Silver | K14: Gold | L14: Silver
B15: 1.6 | C15: AV Metal Value | E15: 0.7836 | F15: 0.7002 | G15: 0.7023 | H15: 0.696 | I15: 0.7 | J15: 0.695 | K15: 0.7836 | L15: 0.7002
B16: 1.7 | C16: Plan Category | E16: Renewing | F16: Renewing | G16: Renewing | H16: Terminated | I16: Terminated | J16: Terminated | K16: Renewing | L16: Renewing
B17: 1.8 | C17: Plan Type | E17: HMO | F17: HMO | G17: HMO | H17: HMO | I17: HMO | J17: HMO | K17: HMO | L17: HMO
B18: 1.9 | C18: Exchange Plan? | E18: Yes | F18: Yes | G18: Yes | H18: No | I18: No | J18: No | K18: Yes | L18: Yes
B19: 1.10 | C19: Effective Date of Proposed Rates | E19: 2024-01-01 | F19: 2024-01-01 | G19: 2024-01-01 | H19: 2024-01-01 | I19: 2024-01-01 | J19: 2024-01-01 | K19: 2024-01-01 | L19: 2024-01-01
B20: 1.11 | C20: Cumulative Rate Change % (over 12 mos prior) | E20: 0.05683283857 | F20: -0.02530099898 | G20: -0.01841507185 | H20: 0 | I20: 0 | J20: 0 | K20: 0.05631664605 | L20: -0.02537805788
B21: 1.12 | C21: Product Rate Increase % | E21: =IF(SUMPRODUCT((E16:J16="Renewing")*((E14:J14="Platinum")+(E14:J14="Gold")+(E14:J14="Silver")+(E14:J14="Bronze")+(E14:J14="Catastrophic")))=0, 0, ROUND(ROUND(SUMPRODUCT(1+E20:J20,E34:J34,E35:J35,--(E16:J16="Renewing")*((E14:J14="Platinum")+(E14:J14="Gold")+(E14:J14="Silver")+(E14:J14="Bronze")+(E14:J14="Catastrophic")))/SUMPRODUCT(E34:J34,E35:J35,--(E16:J16="Renewing")*((E14:J14="Platinum")+(E14:J14="Gold")+(E14:J14="Silver")+(E14:J14="Bronze")+(E14:J14="Catastrophic"))), 4)-1, 4)) -> -0.0232 | K21: =IF(SUMPRODUCT((K16:L16="Renewing")*((K14:L14="Platinum")+(K14:L14="Gold")+(K14:L14="Silver")+(K14:L14="Bronze")+(K14:L14="Catastrophic")))=0, 0, ROUND(ROUND(SUMPRODUCT(1+K20:L20,K34:L34,K35:L35,--(K16:L16="Renewing")*((K14:L14="Platinum")+(K14:L14="Gold")+(K14:L14="Silver")+(K14:L14="Bronze")+(K14:L14="Catastrophic")))/SUMPRODUCT(K34:L34,K35:L35,--(K16:L16="Renewing")*((K14:L14="Platinum")+(K14:L14="Gold")+(K14:L14="Silver")+(K14:L14="Bronze")+(K14:L14="Catastrophic"))), 4)-1, 4)) -> -0.0182
B22: 1.13 | C22: Submission Level Rate Increase % | E22: =IF(SUMPRODUCT((E16:L16="Renewing")*((E14:L14="Platinum")+(E14:L14="Gold")+(E14:L14="Silver")+(E14:L14="Bronze")+(E14:L14="Catastrophic")))=0, 0, ROUND(ROUND(SUMPRODUCT(1+E20:L20,E34:L34,E35:L35,--(E16:L16="Renewing")*((E14:L14="Platinum")+(E14:L14="Gold")+(E14:L14="Silver")+(E14:L14="Bronze")+(E14:L14="Catastrophic")))/SUMPRODUCT(E34:L34,E35:L35,--(E16:L16="Renewing")*((E14:L14="Platinum")+(E14:L14="Gold")+(E14:L14="Silver")+(E14:L14="Bronze")+(E14:L14="Catastrophic"))), 4)-1, 4)) -> -0.0224
A24: Worksheet 1 Totals | C24: Section II: Experience Period and Current Plan Level Information
B25: 2.1 | C25: Plan ID (Standard Component ID) | D25: Total | E25: =E13 -> 73891KY0010001 | F25: 73891KY0010002 | G25: 73891KY0010009 | H25: 73891KY0010004 | I25: 73891KY0010007 | J25: 73891KY0010008 | K25: 73891KY0020001 | L25: 73891KY0020002
A26: ='Wksh 1 - Market Experience'!E14 -> 2254484.906 | B26: 2.2 | C26: Allowed Claims | D26: =SUM(E26:XFD26) -> 2254484.906 | E26: =12022.69776246 -> 12022.69776 | F26: =243287.44502673 -> 243287.445 | G26: =0 -> 0 | H26: =46455.0671879 -> 46455.06719 | I26: =1372493.90236089 -> 1372493.902 | J26: =238817.088705 -> 238817.0887 | K26: =108796.25486791 -> 108796.2549 | L26: =232612.44963172 -> 232612.4496
A27: ='Wksh 1 - Market Experience'!E15 -> 0 | B27: 2.3 | C27: Reinsurance | D27: =SUM(E27:XFD27) -> 0 | E27: =0 -> 0 | F27: =0 -> 0 | G27: =0 -> 0 | H27: =0 -> 0 | I27: =0 -> 0 | J27: =0 -> 0 | K27: =0 -> 0 | L27: =0 -> 0
B28: 2.4 | C28: Member Cost Sharing | D28: =SUM(E28:XFD28) -> 367245.3753 | E28: =4575.27025246 -> 4575.270252 | F28: =48416.4209857298 -> 48416.42099 | G28: =0 -> 0 | H28: =12099.5255519 -> 12099.52555 | I28: =201331.45320289 -> 201331.4532 | J28: =46554.2394569999 -> 46554.23946 | K28: =22726.04100491 -> 22726.041 | L28: =31542.4248217203 -> 31542.42482
B29: 2.5 | C29: Cost Sharing Reduction | D29: =SUM(E29:XFD29) -> 0 | E29: =0 -> 0 | F29: =0 -> 0 | G29: =0 -> 0 | H29: =0 -> 0 | I29: =0 -> 0 | J29: =0 -> 0 | K29: =0 -> 0 | L29: =0 -> 0
A30: ='Wksh 1 - Market Experience'!E16 -> 1887239.53 | B30: 2.6 | C30: Incurred Claims | D30: =D26-D27-D28-D29 -> 1887239.53 | E30: 7447.42751 | F30: 194871.024 | G30: 0 | H30: 34355.54164 | I30: 1171162.449 | J30: 192262.8492 | K30: 86070.21386 | L30: 201070.0248
A31: ='Wksh 1 - Market Experience'!E17 -> -697271.35 | B31: 2.7 | C31: Risk Adjustment Transfer Amount | D31: =SUM(E31:XFD31) -> -697271.35 | E31: =11516.43 -> 11516.43 | F31: =-44143.25 -> -44143.25 | G31: =0 -> 0 | H31: =-48139.59 -> -48139.59 | I31: =-607444.79 -> -607444.79 | J31: =92030.5 -> 92030.5 | K31: =4897.56 -> 4897.56 | L31: =-105988.21 -> -105988.21
A32: ='Wksh 1 - Market Experience'!E18 -> 2795841.25 | B32: 2.8 | C32: Premium | D32: =SUM(E32:XFD32) -> 2795841.25 | E32: =12933.38 -> 12933.38 | F32: =263892.39 -> 263892.39 | G32: =0 -> 0 | H32: =87231.45 -> 87231.45 | I32: =1918556.48 -> 1918556.48 | J32: =147838.69 -> 147838.69 | K32: =82440.71 -> 82440.71 | L32: =282948.15 -> 282948.15
A33: ='Wksh 1 - Market Experience'!E19 -> 5602 | B33: 2.9 | C33: Experience Period Member Months | D33: =SUM(E33:XFD33) -> 5602 | E33: =28 -> 28 | F33: =497 -> 497 | G33: =0 -> 0 | H33: =201 -> 201 | I33: =3853 -> 3853 | J33: =296 -> 296 | K33: =162 -> 162 | L33: =565 -> 565
B34: 2.10 | C34: Current Enrollment | D34: =SUM(E34:XFD34) -> 505 | E34: =2 -> 2 | F34: =305 -> 305 | G34: =111 -> 111 | H34: =0 -> 0 | I34: =0 -> 0 | J34: =0 -> 0 | K34: =7 -> 7 | L34: =80 -> 80
B35: 2.11 | C35: Current Premium PMPM | D35: =SUMPRODUCT(E35:XFD35,E34:XFD34)/D34 -> 549.1492475 | E35: =488.45 -> 488.45 | F35: =566.308229508197 -> 566.3082295 | G35: =541.722342342342 -> 541.7223423 | H35: =0 -> 0 | I35: =0 -> 0 | J35: =0 -> 0 | K35: =548.607142857143 -> 548.6071429 | L35: =495.600375 -> 495.600375
B36: 2.12 | C36: Loss Ratio | D36: =D30/(D31+D32) -> 0.8992979125 | E36: 0.3046006292 | F36: 0.8867885628 | H36: 0.8788413147 | I36: 0.8932591007 | J36: 0.8015320736 | K36: 0.9854810939 | L36: 1.136246005
C37: Per Member Per Month
B38: 2.13 | C38: Allowed Claims | D38: =D26/D33 -> 402.4428607 | E38: 429.3820629 | F38: 489.5119618 | H38: 231.1197373 | I38: 356.2143531 | J38: 806.8144889 | K38: 671.5818202 | L38: 411.7034507
B39: 2.14 | C39: Reinsurance | D39: =D27/D33 -> 0 | E39: 0 | F39: 0 | H39: 0 | I39: 0 | J39: 0 | K39: 0 | L39: 0
B40: 2.15 | C40: Member Cost Sharing | D40: =D28/D33 -> 65.5561184 | E40: 163.402509 | F40: 97.41734605 | H40: 60.19664454 | I40: 52.2531672 | J40: 157.277836 | K40: 140.2842037 | L40: 55.82730057
B41: 2.16 | C41: Cost Sharing Reduction | D41: =D29/D33 -> 0 | E41: 0 | F41: 0 | H41: 0 | I41: 0 | J41: 0 | K41: 0 | L41: 0
B42: 2.17 | C42: Incurred Claims | D42: =D30/D33 -> 336.8867423 | E42: 265.9795539 | F42: 392.0946158 | H42: 170.9230927 | I42: 303.9611859 | J42: 649.5366529 | K42: 531.2976164 | L42: 355.8761501
B43: 2.18 | C43: Risk Adjustment Transfer Amount | D43: =D31/D33 -> -124.4682881 | E43: 411.3010714 | F43: -88.8194165 | H43: -239.5004478 | I43: -157.6550195 | J43: 310.9138514 | K43: 30.23185185 | L43: -187.5897522
B44: 2.19 | C44: Premium | D44: =D32/D33 -> 499.0791235 | E44: 461.9064286 | F44: 530.9706036 | H44: 433.9873134 | I44: 497.9383545 | J44: 499.4550338 | K44: 508.8932716 | L44: 500.7931858
C46: Section III: Plan Adjustment Factors
B47: 3.1 | C47: Plan ID (Standard Component ID) | E47: =E13 -> 73891KY0010001 | F47: 73891KY0010002 | G47: 73891KY0010009 | H47: 73891KY0010004 | I47: 73891KY0010007 | J47: 73891KY0010008 | K47: 73891KY0020001 | L47: 73891KY0020002
B48: 3.2 | C48: Market Adjusted Index Rate | E48: ='Wksh 1 - Market Experience'!F46 -> 593.1771113
B49: 3.3 | C49: AV and Cost Sharing Design of Plan | E49: 1.046023027 | F49: 0.7433059661 | G49: 0.722907128 | H49: 0 | I49: 0 | J49: 0 | K49: 1.046023027 | L49: 0.743150706
B50: 3.4 | C50: Provider Network Adjustment | E50: 1 | F50: 1 | G50: 1 | H50: 0 | I50: 0 | J50: 0 | K50: 1 | L50: 1
B51: 3.5 | C51: Benefits in Addition to EHB | E51: 1 | F51: 1 | G51: 1 | H51: 0 | I51: 0 | J51: 0 | K51: 1.007816539 | L51: 1.011002183
C52: Administrative Costs
B53: 3.6 | C53: Administrative Expense | E53: 0.1064891271 | F53: 0.1432858102 | G53: 0.146701726 | H53: 0 | I53: 0 | J53: 0 | K53: 0.1057555806 | L53: 0.141985817
B54: 3.7 | C54: Taxes and Fees | E54: 0.01925019408 | F54: 0.01947757449 | G54: 0.01949868271 | H54: 0 | I54: 0 | J54: 0 | K54: 0.01924566122 | L54: 0.01946954135
B55: 3.8 | C55: Profit & Risk Load | E55: 0.03 | F55: 0.03 | G55: 0.03 | H55: 0 | I55: 0 | J55: 0 | K55: 0.03 | L55: 0.03
B56: 3.9 | C56: Catastrophic Adjustment | E56: 1 | F56: 1 | G56: 1 | H56: 0 | I56: 0 | J56: 0 | K56: 1 | L56: 1
B57: 3.10 | C57: Plan Adjusted Index Rate | E57: =($E$48*PRODUCT(E49:E51)*E56)/(1-SUM(E53:E55)) -> 734.9352313 | F57: 546.1993143 | G57: 533.4811893 | H57: 0 | I57: 0 | J57: 0 | K57: 740.0329213 | L57: 551.2002038
B59: 3.11 | C59: Age Calibration Factor | D59: 0.6156803187 | E59: =IF(D59<>"", D59, "") -> 0.6156803187
B60: 3.12 | C60: Geographic Calibration Factor | D60: 1.036670641 | E60: =IF(D60<>"", D60, "") -> 1.036670641
B61: 3.13 | C61: Tobacco Calibration Factor | D61: 1 | E61: =IF(D61<>"", D61, "") -> 1
B62: 3.14 | C62: Calibrated Plan Adjusted Index Rate | E62: =E57*(PRODUCT($E$59:$E$61)) -> 469.0780782 | F62: 348.6159239 | G62: 340.4984825 | H62: 0 | I62: 0 | J62: 0 | K62: 472.3317181 | L62: 351.8077801
C64: Section IV: Projected Plan Level Information
B65: 4.1 | C65: Plan ID (Standard Component ID) | D65: Total | E65: =E13 -> 73891KY0010001 | F65: 73891KY0010002 | G65: 73891KY0010009 | H65: 73891KY0010004 | I65: 73891KY0010007 | J65: 73891KY0010008 | K65: 73891KY0020001 | L65: 73891KY0020002
B66: 4.2 | C66: Allowed Claims | D66: =SUM(E66:XFD66) -> 13017756.83 | E66: =408934.76964043 -> 408934.7696 | F66: =5490327.92572813 -> 5490327.926 | G66: =5490327.92572814 -> 5490327.926 | H66: =0 -> 0 | I66: =0 -> 0 | J66: =0 -> 0 | K66: =408934.76964043 -> 408934.7696 | L66: =1219231.44281699 -> 1219231.443
B67: 4.3 | C67: Reinsurance | D67: =SUM(E67:XFD67) -> 0 | E67: =0 -> 0 | F67: =0 -> 0 | G67: =0 -> 0 | H67: =0 -> 0 | I67: =0 -> 0 | J67: =0 -> 0 | K67: =0 -> 0 | L67: =0 -> 0
B68: 4.4 | C68: Member Cost Sharing | D68: =SUM(E68:XFD68) -> 3206183.06 | E68: =91448.3317052063 -> 91448.33171 | F68: =1308930.87326794 -> 1308930.873 | G68: =1423682.59805243 -> 1423682.598 | H68: =0 -> 0 | I68: =0 -> 0 | J68: =0 -> 0 | K68: =91448.3317052063 -> 91448.33171 | L68: =290672.924960221 -> 290672.925
B69: 4.5 | C69: Cost Sharing Reduction | D69: =SUM(E69:XFD69) -> 0 | E69: =0 -> 0 | F69: =0 -> 0 | G69: =0 -> 0 | H69: =0 -> 0 | I69: =0 -> 0 | J69: =0 -> 0 | K69: =0 -> 0 | L69: =0 -> 0
B70: 4.6 | C70: Incurred Claims | D70: =D66-D67-D68-D69 -> 9811573.774 | E70: 317486.4379 | F70: 4181397.052 | G70: 4066645.328 | H70: 0 | I70: 0 | J70: 0 | K70: 317486.4379 | L70: 928558.5179
B71: 4.7 | C71: Risk Adjustment Transfer Amount | D71: =SUM(E71:XFD71) -> 589138.4342 | E71: =18506.9665194534 -> 18506.96652 | F71: =248473.161603778 -> 248473.1616 | G71: =248473.161603779 -> 248473.1616 | H71: =0 -> 0 | I71: =0 -> 0 | J71: =0 -> 0 | K71: =18506.9665194534 -> 18506.96652 | L71: =55178.1779561549 -> 55178.17796
B72: 4.8 | C72: Premium | D72: =SUM(E72:XFD72) -> 11413960.49 | E72: =476239.780120594 -> 476239.7801 | F72: =4751951.49839673 -> 4751951.498 | G72: =4641303.40407942 -> 4641303.404 | H72: =0 -> 0 | I72: =0 -> 0 | J72: =0 -> 0 | K72: =479543.09536147 -> 479543.0954 | L72: =1064922.70740227 -> 1064922.707
B73: 4.9 | C73: Projected Member Months | D73: =SUM(E73:XFD73) -> 20628 | E73: =648 -> 648 | F73: =8700 -> 8700 | G73: =8700 -> 8700 | H73: =0 -> 0 | I73: =0 -> 0 | J73: =0 -> 0 | K73: =648 -> 648 | L73: =1932 -> 1932
B74: 4.10 | C74: Loss Ratio | D74: =D70/(D71+D72) -> 0.8174200546 | E74: 0.6417150595 | F74: 0.8362083896 | G74: 0.8316628118 | K74: 0.6374588866 | L74: 0.8289954325
C75: Per Member Per Month
B76: 4.11 | C76: Allowed Claims | D76: =D66/D73 -> 631.0721754 | E76: 631.0721754 | F76: 631.0721754 | G76: 631.0721754 | K76: 631.0721754 | L76: 631.0721754
B77: 4.12 | C77: Reinsurance | D77: =D67/D73 -> 0 | E77: 0 | F77: 0 | G77: 0 | K77: 0 | L77: 0
B78: 4.13 | C78: Member Cost Sharing | D78: =D68/D73 -> 155.4286921 | E78: 141.1239687 | F78: 150.4518245 | G78: 163.6416779 | K78: 141.1239687 | L78: 150.4518245
B79: 4.14 | C79: Cost Sharing Reduction | D79: =D69/D73 -> 0 | E79: 0 | F79: 0 | G79: 0 | K79: 0 | L79: 0
B80: 4.15 | C80: Incurred Claims | D80: =D70/D73 -> 475.6434833 | E80: 489.9482067 | F80: 480.6203509 | G80: 467.4304974 | K80: 489.9482067 | L80: 480.6203509
B81: 4.16 | C81: Risk Adjustment Transfer Amount | D81: =D71/D73 -> 28.56013352 | E81: 28.56013352 | F81: 28.56013352 | G81: 28.56013352 | K81: 28.56013352 | L81: 28.56013352
B82: 4.17 | C82: Premium | D82: =D72/D73 -> 553.3236613 | E82: 734.9379323 | F82: 546.2013217 | G82: 533.4831499 | K82: 740.035641 | L82: 551.2022295

Sheet Wksh 3 - Rating Areas
A1: Rating Area Data Collection [assistive technology users, please reference cell A2 for instructions] | C1: Specify the total number of Rating Areas in your State by selecting the Create Rating Areas button or Ctrl + Shift + R.
A2: Press TAB and directional arrow keys to read through the document. If macros are disabled, press and hold the ALT key and press the F, then I, and then N key. After that, select the Enable All Content option by pressing enter. (note that you can also press the C key to select "Enable All Content") Instructions can be found in cells C1 through C4. If screen reader fails to announce a cell after performing a dropdown selection, please press F2 and then ESC to force the screen reader to resume. | C2: Select only the Rating Areas you are offering plans within and add a factor for each area.
C3: To validate, select the Validate button or Ctrl + Shift + I.
C4: To finalize, select the Finalize button or Ctrl + Shift + F.
A5: Rating Area | B5: Rating Factor
A6: Rating Area 3 | B6: 0.933
A7: Rating Area 5 | B7: 0.978
A8: Rating Area 6 | B8: 1.206

Sheet PlanTemplate (hidden)
A1: REBUILD | C1: Product-Plan Data Collection
C3: Company Legal Name: | D3: =IF('Wksh 1 - Market Experience'!C3<>"", 'Wksh 1 - Market Experience'!C3,"") -> Molina Healthcare of Kentucky, Inc. | N3: State: | O3: =IF('Wksh 1 - Market Experience'!E4="","",'Wksh 1 - Market Experience'!E4) -> KY
C4: HIOS Issuer ID: | D4: =IF('Wksh 1 - Market Experience'!C4<>"", 'Wksh 1 - Market Experience'!C4,"") -> 73891 | N4: Market: | O4: =IF('Wksh 1 - Market Experience'!E5="","",'Wksh 1 - Market Experience'!E5) -> Individual
C5: Effective Date of Rate Change(s): | D5: =IF('Wksh 1 - Market Experience'!#REF!<>"", 'Wksh 1 - Market Experience'!#REF!,"") -> 
C7: Product/Plan Level Calculations
B9: Field # | C9: Section I: General Product and Plan Information
B10: 1.1 | C10: Product Name | K10: Rating Area 1 | L10: AL | M10: New | N10: Platinum | O10: Yes
B11: 1.2 | C11: Product ID | K11: Rating Area 2 | L11: AK | M11: Renewing | N11: Gold | O11: No
B12: 1.3 | C12: Plan Name | K12: Rating Area 3 | L12: AZ | M12: Terminated | N12: Silver
B13: 1.4 | C13: Plan ID (Standard Component ID) | K13: Rating Area 4 | L13: AR | N13: Bronze
B14: 1.5 | C14: Metal | K14: Rating Area 5 | L14: CA | N14: Catastrophic
B15: 1.6 | C15: AV Metal Value | K15: Rating Area 6 | L15: CO | N15: Not Applicable
B16: 1.7 | C16: Plan Category | L16: CT
B17: 1.8 | C17: Plan Type | L17: DC
B18: 1.9 | C18: Exchange Plan? | L18: DE
B19: 1.10 | C19: Effective Date of Proposed Rates | L19: FL
B20: 1.11 | C20: Cumulative Rate Change % (over 12 mos prior) | L20: GA
B21: 1.12 | C21: Product Rate Increase % | L21: HI
B22: 1.13 | C22: Submission Level Rate Increase % | L22: ID
L23: IL
C24: Section II: Experience Period and Current Plan Level Information | L24: IN
B25: 2.1 | C25: Plan ID (Standard Component ID) | D25: Total | E25: =IF(E13<>"",E13,"") ->  | L25: IA
B26: 2.2 | C26: Allowed Claims | D26: =SUM(E26:XFD26) -> 0 | L26: KS
B27: 2.3 | C27: Reinsurance | D27: =SUM(E27:XFD27) -> 0 | L27: KY
B28: 2.4 | C28: Member Cost Sharing | D28: =SUM(E28:XFD28) -> 0 | L28: LA
B29: 2.5 | C29: Cost Sharing Reduction | D29: =SUM(E29:XFD29) -> 0 | L29: ME
B30: 2.6 | C30: Incurred Claims | D30: =D26-D27-D28-D29 -> 0 | E30: =E26-E27-E28-E29 -> 0 | L30: MD
B31: 2.7 | C31: Risk Adjustment Transfer Amount | D31: =SUM(E31:XFD31) -> 0 | L31: MA
B32: 2.8 | C32: Premium | D32: =SUM(E32:XFD32) -> 0 | L32: MI
B33: 2.9 | C33: Experience Period Member Months | D33: =SUM(E33:XFD33) -> 0 | L33: MN
B34: 2.10 | C34: Current Enrollment | D34: =SUM(E34:XFD34) -> 0 | L34: MS
B35: 2.11 | C35: Current Premium PMPM | D35: =SUMPRODUCT(E35:XFD35,E34:XFD34)/D34 ->  | L35: MO
B36: 2.12 | C36: Loss Ratio | D36: =D30/(D31+D32) ->  | E36: =E30/(E31+E32) ->  | L36: MT
C37: Per Member Per Month | L37: NE
B38: 2.13 | C38: Allowed Claims | D38: =D26/D33 ->  | E38: =E26/E33 ->  | L38: NV
B39: 2.14 | C39: Reinsurance | D39: =D27/D33 ->  | E39: =E27/E33 ->  | L39: NH
B40: 2.15 | C40: Member Cost Sharing | D40: =D28/D33 ->  | E40: =E28/E33 ->  | L40: NJ
B41: 2.16 | C41: Cost Sharing Reduction | D41: =D29/D33 ->  | E41: =E29/E33 ->  | L41: NM
B42: 2.17 | C42: Incurred Claims | D42: =D30/D33 ->  | E42: =E30/E33 ->  | L42: NY
B43: 2.18 | C43: Risk Adjustment Transfer Amount | D43: =D31/D33 ->  | E43: =E31/E33 ->  | L43: NC
B44: 2.19 | C44: Premium | D44: =D32/D33 ->  | E44: =E32/E33 ->  | L44: ND
L45: OH
C46: Section III: Plan Adjustment Factors | L46: OK
B47: 3.1 | C47: Plan ID (Standard Component ID) | E47: =IF(E13<>"",E13,"") ->  | L47: OR
B48: 3.2 | C48: Market Adjusted Index Rate | E48: ='Wksh 1 - Market Experience'!F46 -> 593.1771113 | L48: PA
B49: 3.3 | C49: AV and Cost Sharing Design of Plan | L49: RI
B50: 3.4 | C50: Provider Network Adjustment | L50: SC
B51: 3.5 | C51: Benefits in Addition to EHB | L51: SD
C52: Administrative Costs | L52: TN
B53: 3.6 | C53: Administrative Expense | L53: TX
B54: 3.7 | C54: Taxes and Fees | L54: UT
B55: 3.8 | C55: Profit & Risk Load | L55: VT
B56: 3.9 | C56: Catastrophic Adjustment | L56: VA
B57: 3.10 | C57: Plan Adjusted Index Rate | E57: =($E$48*PRODUCT(E49:E51)*E56)/(1-SUM(E53:E55)) -> 0 | L57: WA
L58: WV
B59: 3.11 | C59: Age Calibration Factor | E59: =IF(D59<>"", D59, "") ->  | L59: WI
B60: 3.12 | C60: Geographic Calibration Factor | E60: =IF(D60<>"", D60, "") ->  | L60: WY
B61: 3.13 | C61: Tobacco Calibration Factor | E61: =IF(D61<>"", D61, "") -> 
B62: 3.14 | C62: Calibrated Plan Adjusted Index Rate | E62: =E57*(PRODUCT($E$59:$E$61)) -> 0
C64: Section IV: Projected Plan Level Information
B65: 4.1 | C65: Plan ID (Standard Component ID) | D65: Total | E65: =IF(E13<>"",E13,"") -> 
B66: 4.2 | C66: Allowed Claims | D66: =SUM(E66:XFD66) -> 0
B67: 4.3 | C67: Reinsurance | D67: =SUM(E67:XFD67) -> 0
B68: 4.4 | C68: Member Cost Sharing | D68: =SUM(E68:XFD68) -> 0
B69: 4.5 | C69: Cost Sharing Reduction | D69: =SUM(E69:XFD69) -> 0
B70: 4.6 | C70: Incurred Claims | D70: =D66-D67-D68-D69 -> 0 | E70: =E66-E67-E68-E69 -> 0
B71: 4.7 | C71: Risk Adjustment Transfer Amount | D71: =SUM(E71:XFD71) -> 0
B72: 4.8 | C72: Premium | D72: =SUM(E72:XFD72) -> 0
B73: 4.9 | C73: Projected Member Months | D73: =SUM(E73:XFD73) -> 0
B74: 4.10 | C74: Loss Ratio | D74: =D70/(D71+D72) ->  | E74: =E70/(E71+E72) -> 
C75: Per Member Per Month
B76: 4.11 | C76: Allowed Claims | D76: =D66/D73 ->  | E76: =E66/E73 -> 
B77: 4.12 | C77: Reinsurance | D77: =D67/D73 ->  | E77: =E67/E73 -> 
B78: 4.13 | C78: Member Cost Sharing | D78: =D68/D73 ->  | E78: =E68/E73 -> 
B79: 4.14 | C79: Cost Sharing Reduction | D79: =D69/D73 ->  | E79: =E69/E73 -> 
B80: 4.15 | C80: Incurred Claims | D80: =D70/D73 ->  | E80: =E70/E73 -> 
B81: 4.16 | C81: Risk Adjustment Transfer Amount | D81: =D71/D73 ->  | E81: =E71/E73 -> 
B82: 4.17 | C82: Premium | D82: =D72/D73 ->  | E82: =E72/E73 -> 
